fUSD/lending_fUSD_20240201
["ID","MTS","AMOUNT","RATE_DAILY","PERIOD"]
[313121896,1706775046098,-1300.4,0.00027397,5]
[313121899,1706775046131,-500.0,0.00027397,2]
[313121902,1706775046141,-525.2410119,0.00027397,2]
[313121904,1706775046150,-500.0,0.00027397,2]
[313121906,1706775046161,-675.48,0.00027397,2]
[313121908,1706775046172,-2420.89,0.00027397,2]
[313121909,1706775046182,-574.31,0.00027397,2]
[313121911,1706775046191,-1262.9,0.00027397,2]
[313121913,1706775046203,-527.72860082,0.00027397,2]
[313121915,1706775046213,-500.0,0.00027397,2]
[313121916,1706775046223,-814.39,0.00027397,2]
[313121917,1706775046232,-538.60583617,0.00027397,2]
[313121918,1706775046241,-500.0,0.00027397,2]
[313121919,1706775046250,-530.33673262,0.00027397,2]
[313121920,1706775046259,-500.0,0.00027397,2]
[313121921,1706775046269,-500.01943425,0.00027397,2]
[313121922,1706775046280,-363.64543732,0.00027397,2]
[313121923,1706775046289,-500.0,0.00027397,2]
[313121924,1706775046300,-500.0,0.00027397,2]
[313121925,1706775046310,-483.43509994,0.00027397,2]
[313121926,1706775046320,-526.18323914,0.00027397,2]
[313121927,1706775046329,-515.00948955,0.00027397,2]
[313121928,1706775046340,-500.0,0.00027397,2]
[313121929,1706775046351,-586.31195677,0.00027397,2]
[313121930,1706775046361,-1547.52,0.00027397,2]
[313121931,1706775046370,-500.0,0.00027397,2]
[313121932,1706775046380,-500.0,0.00027397,2]
[313121933,1706775046390,-570.94789095,0.00027397,2]
[313121934,1706775046401,-613.25,0.00027397,2]
[313121935,1706775046411,-4404.45,0.00027397,2]
[313121936,1706775046423,-523.04007345,0.00027397,2]
[313121937,1706775046432,-500.0,0.00027397,2]
[313121938,1706775046443,-500.0,0.00027397,2]
[313121939,1706775046453,-861.44,0.00027397,2]
[313121940,1706775046462,-500.0,0.00027397,2]
[313121941,1706775046472,-1133.09519763,0.000274,2]
[313121942,1706775046481,-500.0,0.000274,2]
[313121943,1706775046492,-12946.66436041,0.000275,2]
[313121944,1706775046504,-166.05,0.00027616,2]
[313121945,1706775046514,-303.04,0.00027645,2]
[313121946,1706775046523,-359.57426793,0.00027874,2]
[313121947,1706775046532,-500.0,0.00027944,2]
[313121948,1706775046544,-500.0,0.00027944,2]
[313121949,1706775046556,-500.0,0.00027945,2]
[313121950,1706775046565,-557.6,0.00027945,2]
[313121951,1706775046575,-659.39,0.00027945,2]
[313121952,1706775046585,-882.78,0.00027945,2]
[313121953,1706775046595,-500.0,0.00027945,2]
[313121954,1706775046605,-993.93,0.00027945,7]
[313121955,1706775046615,-500.0,0.00027945,2]
[313121956,1706775046625,-577.86,0.00027945,2]
[313121957,1706775046635,-500.0,0.00027945,2]
[313121958,1706775046645,-500.0,0.00027945,2]
[313121959,1706775046656,-500.0,0.00027945,2]
[313121960,1706775046668,-500.0,0.00027945,2]
[313121961,1706775046677,-500.0,0.00027945,2]
[313121962,1706775046686,-500.0,0.00027945,2]
[313121963,1706775046695,-500.0,0.00027945,2]
[313121964,1706775046957,-500.0,0.00027945,2]
[313121965,1706775046967,-500.0,0.00027945,2]
[313121966,1706775046977,-500.0,0.00027945,2]
[313121967,1706775046987,-500.0,0.00027945,2]
[313121968,1706775046996,-301.82864708,0.00027945,2]
[313121969,1706775047006,-500.0,0.00027945,2]
[313121970,1706775047015,-500.0,0.00027945,2]
[313121971,1706775047024,-500.0,0.00027945,2]
[313121972,1706775047034,-500.0,0.00027945,2]
[313121973,1706775047044,-529.4,0.00027945,2]
[313121974,1706775047053,-847.23,0.00027945,2]
[313121975,1706775047062,-500.0,0.00027945,2]
[313121976,1706775047071,-500.0,0.00027945,2]
[313121977,1706775047081,-500.0,0.00027945,2]
[313121978,1706775047090,-500.0,0.00027945,2]
[313121979,1706775047099,-500.0,0.00027945,2]
[313121980,1706775047108,-500.0,0.00027945,2]
[313121981,1706775047118,-500.0,0.00027945,2]
[313121982,1706775047130,-526.74,0.00027945,2]
[313121983,1706775047139,-540.22,0.00027945,2]
[313121984,1706775047148,-500.0,0.00027945,2]
[313121985,1706775047157,-500.0,0.00027945,2]
[313121986,1706775047167,-370.63455534,0.00027945,2]
[313121987,1706775047176,-500.0,0.00027945,2]
[313121988,1706775047185,-500.0,0.00027945,2]
[313121989,1706775047194,-500.0,0.00027945,2]
[313121990,1706775047202,-500.0,0.00027945,2]
[313121991,1706775047214,-500.0,0.00027945,2]
[313121992,1706775047223,-500.0,0.00027945,2]
[313121993,1706775047231,-500.0,0.00027945,2]
[313121994,1706775047241,-512.2,0.00027945,2]
[313121995,1706775047250,-500.0,0.00027945,2]
[313121996,1706775047263,-500.0,0.00027945,2]
[313121997,1706775047272,-1266.7,0.00027945,2]
[313121998,1706775047281,-500.0,0.00027945,2]
[313121999,1706775047290,-500.0,0.00027945,2]
[313122000,1706775047299,-618.57,0.00027945,2]
[313122001,1706775047309,-738.71,0.00027945,2]
[313122002,1706775047318,-777.69,0.00027945,2]
[313122003,1706775047327,-1017.54,0.00027945,2]
[313122004,1706775047335,-500.0,0.00027945,2]
[313122005,1706775047344,-548.44,0.00027945,2]
[313122006,1706775047353,-500.0,0.00027945,2]
[313122007,1706775047362,-500.0,0.00027945,2]
[313122008,1706775047371,-2692.7,0.00027945,2]
[313122009,1706775047380,-619.51,0.00027945,2]
[313122010,1706775047390,-500.0,0.00027945,2]
[313122011,1706775047399,-500.0,0.00027945,2]
[313122012,1706775047408,-500.0,0.00027945,2]
[313122013,1706775047418,-1120.2,0.00027945,2]
[313122014,1706775047427,-1005.24,0.00027945,2]
[313122015,1706775047436,-500.0,0.00027945,2]
[313122016,1706775047445,-713.71,0.00027945,2]
[313122017,1706775047454,-500.0,0.00027945,2]
[313122018,1706775047463,-3579.61,0.00027945,2]
[313122019,1706775047473,-500.0,0.00027945,2]
[313122020,1706775047482,-500.0,0.00027945,2]
[313122021,1706775047491,-4458.89,0.00027945,2]
[313122022,1706775047500,-500.0,0.00027945,2]
[313122023,1706775047510,-500.0,0.00027945,2]
[313122024,1706775047519,-500.0,0.00027945,2]
[313122025,1706775047528,-500.0,0.00027945,2]
[313122026,1706775047537,-2636.83,0.00027945,2]
[313122027,1706775047545,-500.0,0.00027945,2]
[313122028,1706775047554,-586.24,0.00027945,2]
[313122029,1706775047563,-500.0,0.00027945,2]
[313122030,1706775047572,-500.0,0.00027945,2]
[313122031,1706775047587,-500.0,0.00027945,2]
[313122032,1706775047596,-500.0,0.00027945,2]
[313122033,1706775047605,-193.70979011,0.00027945,2]
[313122034,1706775047614,-1417.24,0.00027945,2]
[313122035,1706775047623,-500.0,0.00027945,2]
[313122036,1706775047632,-1108.68,0.00027945,2]
[313122037,1706775047642,-500.0,0.00027945,2]
[313122038,1706775047651,-500.0,0.00027945,2]
[313122039,1706775047660,-500.0,0.00027945,2]
[313122040,1706775047670,-500.0,0.00027945,2]
[313122041,1706775047679,-942.73,0.00027945,2]
[313122042,1706775047688,-603.07038907,0.00027945,2]
[313122043,1706775047697,-500.0,0.00027945,2]
[313122044,1706775047706,-500.0,0.00027945,2]
[313122045,1706775047715,-500.0,0.00027945,2]
[313122046,1706775047725,-588.55,0.00027945,2]
[313122047,1706775047734,-714.29,0.00027945,2]
[313122048,1706775047743,-500.0,0.00027945,2]
[313122049,1706775047752,-644.69,0.00027945,2]
[313122050,1706775047761,-500.0,0.00027945,2]
[313122051,1706775047770,-500.0,0.00027945,2]
[313122052,1706775047779,-500.0,0.00027945,2]
[313122053,1706775047788,-581.81,0.00027945,2]
[313122054,1706775047797,-500.0,0.00027945,2]
[313122055,1706775047806,-548.39727021,0.00027945,2]
[313122056,1706775047820,-2731.74,0.00027945,2]
[313122057,1706775047829,-500.0,0.00027945,2]
[313122058,1706775047838,-1237.38,0.00027945,2]
[313122059,1706775047847,-585.02,0.00027945,2]
[313122060,1706775047857,-610.83,0.00027945,2]
[313122061,1706775047866,-500.0,0.00027945,2]
[313122062,1706775047875,-500.0,0.00027945,2]
[313122063,1706775047884,-708.7,0.00027945,2]
[313122064,1706775047894,-1090.5,0.00027945,2]
[313122065,1706775047903,-1000.0,0.00027945,7]
[313122066,1706775047912,-888.24,0.00027945,2]
[313122067,1706775047922,-500.0,0.00027945,2]
[313122068,1706775047931,-1191.27,0.00027945,2]
[313122069,1706775047941,-500.0,0.00027945,2]
[313122070,1706775047950,-575.18,0.00027945,2]
[313122071,1706775047959,-500.0,0.00027945,2]
[313122072,1706775047969,-1665.79,0.00027945,2]
[313122073,1706775047979,-500.0,0.00027945,2]
[313122074,1706775047988,-2857.95,0.00027945,2]
[313122075,1706775047997,-733.39,0.00027945,2]
[313122076,1706775048006,-524.09,0.00027945,2]
[313122077,1706775048016,-573.04,0.00027945,2]
[313122078,1706775048025,-603.17,0.00027945,2]
[313122079,1706775048034,-1246.49,0.00027945,2]
[313122080,1706775048044,-500.0,0.00027945,2]
[313122081,1706775048053,-500.0,0.00027945,2]
[313122082,1706775048063,-500.0,0.00027945,2]
[313122083,1706775048072,-500.0,0.00027945,2]
[313122084,1706775048082,-500.0,0.00027945,2]
[313122085,1706775048090,-1017.7,0.00027945,2]
[313122086,1706775048099,-500.0,0.00027945,2]
[313122087,1706775048109,-500.0,0.00027945,2]
[313122088,1706775048122,-500.0,0.00027945,2]
[313122089,1706775048131,-500.0,0.00027945,2]
[313122090,1706775048142,-500.0,0.00027945,2]
[313122091,1706775048151,-679.02,0.00027945,2]
[313122092,1706775048162,-500.0,0.00027945,2]
[313122093,1706775048172,-500.0,0.00027945,2]
[313122094,1706775048182,-500.0,0.00027945,2]
[313122095,1706775048191,-651.98,0.00027945,2]
[313122096,1706775048201,-500.0,0.00027945,2]
[313122097,1706775048211,-674.95,0.00027945,2]
[313122098,1706775048220,-1238.47,0.00027945,2]
[313122099,1706775048229,-2320.17,0.00027945,2]
[313122100,1706775048238,-600.61,0.00027945,2]
[313122101,1706775048247,-500.0,0.00027945,2]
[313122102,1706775048257,-723.56,0.00027945,2]
[313122103,1706775048266,-500.0,0.00027945,2]
[313122104,1706775048275,-606.08,0.00027945,2]
[313122105,1706775048284,-687.5,0.00027945,2]
[313122106,1706775048293,-500.0,0.00027945,2]
[313122107,1706775048302,-500.0,0.00027945,2]
[313122108,1706775048312,-726.35,0.00027945,2]
[313122109,1706775048321,-500.0,0.00027945,2]
[313122110,1706775048330,-1755.46,0.00027945,2]
[313122111,1706775048339,-500.0,0.00027945,2]
[313122112,1706775048348,-500.0,0.00027945,2]
[313122113,1706775048357,-500.0,0.00027945,2]
[313122114,1706775048367,-543.34,0.00027945,2]
[313122115,1706775048375,-500.0,0.00027945,2]
[313122116,1706775048384,-1597.3,0.00027945,2]
[313122117,1706775048394,-512.22,0.00027945,2]
[313122118,1706775048403,-500.0,0.00027945,2]
[313122119,1706775048412,-500.0,0.00027945,2]
[313122120,1706775048421,-500.0,0.00027945,2]
[313122121,1706775048430,-716.05,0.00027945,2]
[313122122,1706775048439,-718.59,0.00027945,2]
[313122123,1706775048447,-500.0,0.00027945,2]
[313122124,1706775048457,-1486.63,0.00027945,5]
[313122125,1706775048466,-1115.37,0.00027945,2]
[313122126,1706775048476,-549.322236,0.00027945,2]
[313122127,1706775048485,-500.0,0.00027945,2]
[313122128,1706775048494,-16756.36,0.00027945,2]
[313122129,1706775048504,-500.0,0.00027945,2]
[313122130,1706775048513,-500.0,0.00027945,2]
[313122131,1706775048523,-843.96,0.00027945,2]
[313122132,1706775048532,-500.0,0.00027945,2]
[313122133,1706775048541,-519.24,0.00027945,2]
[313122134,1706775048551,-601.26,0.00027945,2]
[313122135,1706775048560,-500.0,0.00027945,2]
[313122136,1706775048570,-907.28,0.00027945,2]
[313122137,1706775048579,-500.0,0.00027945,2]
[313122138,1706775048588,-500.0,0.00027945,2]
[313122139,1706775048597,-839.88,0.00027945,2]
[313122140,1706775048606,-1300.82,0.00027945,2]
[313122141,1706775048615,-500.0,0.00027945,2]
[313122142,1706775048624,-777.54,0.00027945,2]
[313122143,1706775048633,-500.0,0.00027945,2]
[313122144,1706775048642,-1568.5,0.00027945,2]
[313122145,1706775048651,-1300.4,0.00027945,5]
[313122146,1706775048660,-500.0,0.00027945,2]
[313122147,1706775048670,-500.0,0.00027945,2]
[313122148,1706775048679,-675.48,0.00027945,2]
[313122149,1706775048688,-2420.89,0.00027945,2]
[313122150,1706775048697,-574.31,0.00027945,2]
[313122151,1706775048706,-1262.9,0.00027945,2]
[313122152,1706775048715,-500.0,0.00027945,2]
[313122153,1706775048725,-814.39,0.00027945,2]
[313122154,1706775048733,-500.0,0.00027945,2]
[313122155,1706775048742,-500.0,0.00027945,2]
[313122156,1706775048751,-500.0,0.00027945,2]
[313122157,1706775048761,-500.0,0.00027945,2]
[313122158,1706775048770,-1547.52,0.00027945,2]
[313122159,1706775048780,-500.0,0.00027945,2]
[313122160,1706775048789,-500.0,0.00027945,2]
[313122161,1706775048798,-4404.45,0.00027945,2]
[313122162,1706775048807,-613.25,0.00027945,2]
[313122163,1706775048816,-500.0,0.00027945,2]
[313122164,1706775048826,-861.44,0.00027945,2]
[313122165,1706775048835,-290.40617084,0.00028,2]
[313122166,1706775048845,-2766.0,0.000283,2]
[313122167,1706775048854,-5040.0,0.000283,2]
[313122168,1706775048863,-866.37,0.00028323,2]
[313122169,1706775048873,-154.55297821,0.00028459,2]
[313122170,1706775048882,-427.1,0.00028483,10]
[313122171,1706775048891,-659.39,0.00028493,2]
[313122172,1706775048901,-882.78,0.00028493,2]
[313122173,1706775048910,-500.0,0.00028493,2]
[313122174,1706775048919,-993.93,0.00028493,7]
[313122175,1706775048928,-500.0,0.00028493,2]
[313122176,1706775048938,-500.0,0.00028493,2]
[313122177,1706775048947,-500.0,0.00028493,2]
[313122178,1706775048957,-500.0,0.00028493,2]
[313122179,1706775048966,-500.0,0.00028493,2]
[313122180,1706775048976,-500.0,0.00028493,2]
[313122181,1706775048985,-500.0,0.00028493,2]
[313122182,1706775048994,-500.0,0.00028493,2]
[313122183,1706775049003,-500.0,0.00028493,2]
[313122184,1706775049012,-500.0,0.00028493,2]
[313122185,1706775049022,-500.0,0.00028493,2]
[313122186,1706775049031,-500.0,0.00028493,2]
[313122187,1706775049040,-500.0,0.00028493,2]
[313122188,1706775049050,-500.0,0.00028493,2]
[313122189,1706775049059,-500.0,0.00028493,2]
[313122190,1706775049068,-529.4,0.00028493,2]
[313122191,1706775049077,-500.0,0.00028493,2]
[313122192,1706775049086,-847.23,0.00028493,2]
[313122193,1706775049096,-500.000001,0.00028493,2]
[313122194,1706775049105,-500.0,0.00028493,2]
[313122195,1706775049115,-500.0,0.00028493,2]
[313122196,1706775049124,-500.0,0.00028493,2]
[313122197,1706775049135,-500.0,0.00028493,2]
[313122198,1706775049145,-500.0,0.00028493,2]
[313122199,1706775049154,-500.0,0.00028493,2]
[313122200,1706775049163,-500.0,0.00028493,2]
[313122201,1706775049173,-500.0,0.00028493,2]
[313122202,1706775049183,-500.0,0.00028493,2]
[313122203,1706775049193,-500.0,0.00028493,2]
[313122204,1706775049202,-500.0,0.00028493,2]
[313122205,1706775049214,-500.0,0.00028493,2]
[313122206,1706775049226,-500.0,0.00028493,2]
[313122207,1706775049235,-500.0,0.00028493,2]
[313122208,1706775049244,-512.2,0.00028493,2]
[313122209,1706775049254,-500.0,0.00028493,2]
[313122210,1706775049263,-500.0,0.00028493,2]
[313122211,1706775049273,-1266.7,0.00028493,2]
[313122212,1706775049281,-500.0,0.00028493,2]
[313122213,1706775049290,-500.0,0.00028493,2]
[313122214,1706775049300,-738.71,0.00028493,2]
[313122215,1706775049309,-777.69,0.00028493,2]
[313122216,1706775049318,-1017.54,0.00028493,2]
[313122217,1706775049327,-500.0,0.00028493,2]
[313122218,1706775049337,-548.44,0.00028493,2]
[313122219,1706775049347,-500.0,0.00028493,2]
[313122220,1706775049357,-500.0,0.00028493,2]
[313122221,1706775049366,-2692.7,0.00028493,2]
[313122222,1706775049375,-619.51,0.00028493,2]
[313122223,1706775049385,-500.0,0.00028493,2]
[313122224,1706775049395,-500.0,0.00028493,2]
[313122225,1706775049405,-500.0,0.00028493,2]
[313122226,1706775049415,-1120.2,0.00028493,2]
[313122227,1706775049425,-1005.24,0.00028493,2]
[313122228,1706775049434,-500.0,0.00028493,2]
[313122229,1706775049443,-713.71,0.00028493,2]
[313122230,1706775049454,-500.0,0.00028493,2]
[313122231,1706775049464,-3579.61,0.00028493,2]
[313122232,1706775049473,-500.0,0.00028493,2]
[313122233,1706775049487,-4458.89,0.00028493,2]
[313122234,1706775049498,-500.0,0.00028493,2]
[313122235,1706775049508,-500.0,0.00028493,2]
[313122236,1706775049517,-306.30973189,0.00028493,2]
[313122237,1706775049529,-2636.83,0.00028493,2]
[313122238,1706775049538,-500.0,0.00028493,2]
[313122239,1706775049547,-586.24,0.00028493,2]
[313122240,1706775049559,-500.0,0.00028493,2]
[313122241,1706775049568,-500.0,0.00028493,2]
[313122242,1706775049579,-500.0,0.00028493,2]
[313122243,1706775049589,-1417.24,0.00028493,2]
[313122244,1706775049598,-1108.68,0.00028493,2]
[313122245,1706775049608,-500.0,0.00028493,2]
[313122246,1706775049618,-500.0,0.00028493,2]
[313122247,1706775049628,-500.0,0.00028493,2]
[313122248,1706775049638,-500.0,0.00028493,2]
[313122249,1706775049649,-500.0,0.00028493,2]
[313122250,1706775049658,-942.73,0.00028493,2]
[313122251,1706775049667,-500.0,0.00028493,2]
[313122252,1706775049677,-500.0,0.00028493,2]
[313122253,1706775049687,-500.0,0.00028493,2]
[313122254,1706775049697,-588.55,0.00028493,2]
[313122255,1706775049707,-714.29,0.00028493,2]
[313122256,1706775049717,-500.0,0.00028493,2]
[313122257,1706775049727,-644.69,0.00028493,2]
[313122258,1706775049738,-500.0,0.00028493,2]
[313122259,1706775049748,-500.0,0.00028493,2]
[313122260,1706775049757,-500.0,0.00028493,2]
[313122261,1706775049766,-581.81,0.00028493,2]
[313122262,1706775049775,-2731.74,0.00028493,2]
[313122263,1706775049786,-500.0,0.00028493,2]
[313122264,1706775049795,-1237.38,0.00028493,2]
[313122265,1706775049804,-585.02,0.00028493,2]
[313122266,1706775049813,-610.83,0.00028493,2]
[313122267,1706775049822,-500.0,0.00028493,2]
[313122268,1706775049831,-708.7,0.00028493,2]
[313122269,1706775049840,-1090.5,0.00028493,2]
[313122270,1706775049850,-888.24,0.00028493,2]
[313122271,1706775049860,-1000.0,0.00028493,7]
[313122272,1706775049869,-500.0,0.00028493,2]
[313122273,1706775049879,-1191.27,0.00028493,2]
[313122274,1706775049888,-500.0,0.00028493,2]
[313122275,1706775049898,-575.18,0.00028493,2]
[313122276,1706775049908,-500.0,0.00028493,2]
[313122277,1706775049918,-1665.79,0.00028493,2]
[313122278,1706775049927,-500.0,0.00028493,2]
[313122279,1706775049937,-2857.95,0.00028493,2]
[313122280,1706775049946,-733.39,0.00028493,2]
[313122281,1706775049955,-524.09,0.00028493,2]
[313122282,1706775049965,-573.04,0.00028493,2]
[313122283,1706775049975,-603.17,0.00028493,2]
[313122284,1706775049985,-1246.49,0.00028493,2]
[313122285,1706775049995,-500.0,0.00028493,2]
[313122286,1706775050004,-500.0,0.00028493,2]
[313122287,1706775050014,-500.0,0.00028493,2]
[313122288,1706775050023,-500.0,0.00028493,2]
[313122289,1706775050033,-500.0,0.00028493,2]
[313122290,1706775050042,-1017.7,0.00028493,2]
[313122291,1706775050052,-500.0,0.00028493,2]
[313122292,1706775050062,-500.0,0.00028493,2]
[313122293,1706775050072,-500.0,0.00028493,2]
[313122294,1706775050082,-500.0,0.00028493,2]
[313122295,1706775050092,-500.0,0.00028493,2]
[313122296,1706775050102,-679.02,0.00028493,2]
[313122297,1706775050111,-500.0,0.00028493,2]
[313122298,1706775050124,-500.0,0.00028493,2]
[313122299,1706775050133,-500.0,0.00028493,2]
[313122300,1706775050142,-651.98,0.00028493,2]
[313122301,1706775050152,-585.49668427,0.00028493,2]
[313122302,1706775050163,-674.95,0.00028493,2]
[313122303,1706775050172,-1238.47,0.00028493,2]
[313122304,1706775050182,-2320.17,0.00028493,2]
[313122305,1706775050192,-600.61,0.00028493,2]
[313122306,1706775050203,-723.56,0.00028493,2]
[313122307,1706775050213,-500.0,0.00028493,2]
[313122308,1706775050223,-606.08,0.00028493,2]
[313122309,1706775050233,-687.5,0.00028493,2]
[313122310,1706775050243,-500.0,0.00028493,2]
[313122311,1706775050253,-726.35,0.00028493,2]
[313122312,1706775050262,-500.0,0.00028493,2]
[313122313,1706775050271,-500.0,0.00028493,2]
[313122314,1706775050281,-500.0,0.00028493,2]
[313122315,1706775050292,-500.0,0.00028493,2]
[313122316,1706775050301,-1755.46,0.00028493,2]
[313122317,1706775050311,-500.0,0.00028493,2]
[313122318,1706775050320,-543.34,0.00028493,2]
[313122319,1706775050330,-500.0,0.00028493,2]
[313122320,1706775050339,-1597.3,0.00028493,2]
[313122321,1706775050350,-512.22,0.00028493,2]
[313122322,1706775050359,-500.0,0.00028493,2]
[313122323,1706775050369,-500.0,0.00028493,2]
[313122324,1706775050378,-500.0,0.00028493,2]
[313122325,1706775050387,-716.05,0.00028493,2]
[313122326,1706775050397,-500.0,0.00028493,2]
[313122327,1706775050407,-718.59,0.00028493,2]
[313122328,1706775050416,-1486.63,0.00028493,5]
[313122329,1706775050426,-1115.37,0.00028493,2]
[313122330,1706775050435,-500.0,0.00028493,2]
[313122331,1706775050444,-16756.36,0.00028493,2]
[313122332,1706775050454,-500.0,0.00028493,2]
[313122333,1706775050463,-843.96,0.00028493,2]
[313122334,1706775050473,-500.0,0.00028493,2]
[313122335,1706775050482,-519.24,0.00028493,2]
[313122336,1706775050491,-500.0,0.00028493,2]
[313122337,1706775050501,-601.26,0.00028493,2]
[313122338,1706775050511,-907.28,0.00028493,2]
[313122339,1706775050521,-500.0,0.00028493,2]
[313122340,1706775050530,-500.0,0.00028493,2]
[313122341,1706775050540,-500.0,0.00028493,2]
[313122342,1706775050549,-839.88,0.00028493,2]
[313122343,1706775050559,-500.0,0.00028493,2]
[313122344,1706775050568,-1300.82,0.00028493,2]
[313122345,1706775050578,-777.54,0.00028493,2]
[313122346,1706775050587,-500.0,0.00028493,2]
[313122347,1706775050596,-1568.5,0.00028493,2]
[313122348,1706775050606,-1300.4,0.00028493,5]
[313122349,1706775050615,-545.79460428,0.00028493,2]
[313122350,1706775050624,-500.0,0.00028493,2]
[313122351,1706775050634,-675.48,0.00028493,2]
[313122352,1706775050644,-2420.89,0.00028493,2]
[313122353,1706775050653,-574.31,0.00028493,2]
[313122354,1706775050662,-1262.9,0.00028493,2]
[313122355,1706775050672,-500.0,0.00028493,2]
[313122356,1706775050682,-814.39,0.00028493,2]
[313122357,1706775050692,-379.39739447,0.00028493,2]
[313122358,1706775050701,-500.0,0.00028493,2]
[313122359,1706775050710,-500.0,0.00028493,2]
[313122360,1706775050890,-500.0,0.00028493,2]
[313122361,1706775050900,-1547.52,0.00028493,2]
[313122362,1706775050910,-500.0,0.00028493,2]
[313122363,1706775050920,-220.4582981,0.00028493,2]
[313122364,1706775050930,-613.25,0.00028493,2]
[313122365,1706775050939,-4404.45,0.00028493,2]
[313122366,1706775050949,-500.0,0.00028493,2]
[313122367,1706775050959,-861.44,0.00028493,2]
[313122368,1706775050968,-150.0,0.00028589,2]
[313122369,1706775050978,-166.05,0.00028593,2]
[313122370,1706775050987,-659.39,0.00029041,2]
[313122371,1706775050997,-882.78,0.00029041,2]
[313122372,1706775051007,-500.0,0.00029041,2]
[313122373,1706775051017,-993.93,0.00029041,7]
[313122374,1706775051027,-500.0,0.00029041,2]
[313122375,1706775051036,-500.0,0.00029041,2]
[313122376,1706775051046,-421.5150558,0.00029041,2]
[313122377,1706775051057,-500.0,0.00029041,2]
[313122378,1706775051066,-500.0,0.00029041,2]
[313122379,1706775051076,-500.0,0.00029041,2]
[313122380,1706775051086,-500.0,0.00029041,2]
[313122381,1706775051095,-500.0,0.00029041,2]
[313122382,1706775051104,-500.0,0.00029041,2]
[313122383,1706775051113,-500.0,0.00029041,2]
[313122384,1706775051122,-500.0,0.00029041,2]
[313122385,1706775051136,-288.85491063,0.00029041,2]
[313122386,1706775051146,-500.0,0.00029041,2]
[313122387,1706775051155,-500.0,0.00029041,2]
[313122388,1706775051165,-529.4,0.00029041,2]
[313122389,1706775051174,-500.0,0.00029041,2]
[313122390,1706775051187,-847.23,0.00029041,2]
[313122391,1706775051197,-500.0,0.00029041,2]
[313122392,1706775051207,-500.0,0.00029041,2]
[313122393,1706775051216,-500.0,0.00029041,2]
[313122394,1706775051227,-500.0,0.00029041,2]
[313122395,1706775051236,-526.90234322,0.00029041,2]
[313122396,1706775051245,-500.0,0.00029041,2]
[313122397,1706775051254,-500.0,0.00029041,2]
[313122398,1706775051263,-500.0,0.00029041,2]
[313122399,1706775051272,-500.0,0.00029041,2]
[313122400,1706775051282,-500.0,0.00029041,2]
[313122401,1706775051291,-500.0,0.00029041,2]
[313122402,1706775051301,-500.0,0.00029041,2]
[313122403,1706775051310,-500.0,0.00029041,2]
[313122404,1706775051319,-500.0,0.00029041,2]
[313122405,1706775051329,-512.2,0.00029041,2]